fUSD/lending_fUSD_20251222
["ID","MTS","AMOUNT","RATE_DAILY","PERIOD"]
[399480467,1766413602722,-1000000.0,0.00042673,30]
[399480468,1766413602749,-250.0,0.00042673,120]
[399480469,1766413602778,-505.69806431,0.00042673,120]
[399480470,1766413602806,-179.09765725,0.00042673,120]
[399480471,1766413602833,-500.0,0.00042673,120]
[399480472,1766413602861,-500.0,0.00042673,120]
[399480473,1766413602889,-500.0,0.00042673,120]
[399480474,1766413602918,-547.47470779,0.00042673,120]
[399480475,1766413602951,-500.0,0.00042673,120]
[399480476,1766413602993,-500.0,0.00042673,120]
[399480477,1766413603024,-500.0,0.00042673,120]
[399480478,1766413603054,-500.0,0.00042673,120]
[399480479,1766413603084,-500.0,0.00042673,120]
[399480480,1766413603114,-500.0,0.00042673,120]
[399480481,1766413603144,-500.0,0.00042673,120]
[399480482,1766413603174,-500.0,0.00042673,120]
[399480483,1766413603204,-500.0,0.00042673,120]
[399480484,1766413603234,-500.0,0.00042673,120]
[399480485,1766413603263,-500.0,0.00042673,120]
[399480486,1766413603294,-500.0,0.00042673,120]
[399480487,1766413603323,-500.0,0.00042673,120]
[399480488,1766413603352,-500.0,0.00042673,120]
[399480489,1766413603382,-500.0,0.00042673,120]
[399480490,1766413603411,-500.0,0.00042673,120]
[399480491,1766413603440,-500.0,0.00042673,120]
[399480492,1766413603469,-500.0,0.00042673,120]
[399480493,1766413603499,-500.0,0.00042673,120]
[399480494,1766413603528,-500.0,0.00042673,120]
[399480495,1766413603558,-500.0,0.00042673,120]
[399480496,1766413603587,-500.0,0.00042673,120]
[399480497,1766413603615,-1249.13,0.00042673,120]
[399480498,1766413603642,-500.0,0.00042673,120]
[399480499,1766413603669,-500.0,0.00042673,120]
[399480500,1766413603697,-500.0,0.00042673,120]
[399480501,1766413603726,-500.0,0.00042673,120]
[399480502,1766413603754,-500.0,0.00042673,120]
[399480503,1766413603781,-174.98,0.00042673,120]
[399480504,1766413603810,-548.23146925,0.00042673,120]
[399480505,1766413603837,-301.01381423,0.00042673,120]
[399480506,1766413603865,-372.38504975,0.00042673,120]
[399480507,1766413603893,-255.67458542,0.00042673,120]
[399480508,1766413603921,-238.31512762,0.00042673,120]
[399480509,1766413603953,-522.83597425,0.00042673,120]
[399480510,1766413603982,-384.52626167,0.00042673,120]
[399480511,1766413604013,-505.037391,0.00042673,120]
[399480512,1766413604043,-179.03490929,0.00042673,120]
[399480513,1766413604072,-176.94930444,0.00042673,60]
[399480514,1766413604101,-259.39850049,0.00042673,120]
[399480515,1766413604131,-249.38271244,0.00042673,120]
[399480516,1766413604161,-437.88731245,0.00042673,120]
[399480517,1766413604188,-266.82222333,0.00042673,120]
[399480518,1766413604216,-186.6293211,0.00042673,120]
[399480519,1766413604244,-161.42968966,0.00042673,120]
[399480520,1766413604273,-490.22918866,0.00042673,120]
[399480521,1766413604300,-324.56886775,0.00042673,120]
[399480522,1766413604328,-513.89191722,0.00042673,120]
[399480523,1766413604356,-412.58015439,0.00042673,120]
[399480524,1766413604385,-350.6181753,0.00042673,120]
[399480525,1766413604413,-505.50104004,0.00042673,120]
[399480526,1766413604442,-248.27466368,0.00042673,120]
[399480527,1766413604469,-196.41707646,0.00042673,120]
[399480528,1766413604496,-534.12977126,0.00042673,120]
[399480529,1766413604525,-500.0,0.00042673,120]
[399480530,1766413604552,-186.30977961,0.00042673,120]
[399480531,1766413604580,-161.12249694,0.00042673,120]
[399480532,1766413604608,-236.12443422,0.00042673,120]
[399480533,1766413604637,-5000.0,0.00042673,60]
[399480534,1766413604664,-5000.0,0.00042673,30]
[399480535,1766413604692,-1000.0,0.00042673,120]
[399480536,1766413604719,-2079.0,0.00042673,120]
[399480537,1766413604746,-518.7658834,0.00042673,120]
[399480538,1766413604773,-378.0,0.00042673,120]
[399480539,1766413604801,-5000.0,0.00042673,36]
[399480540,1766413604829,-4855729.25407309,0.00042673,90]
[399480541,1766413615664,-6000000.0,0.00042673,90]
[399480542,1766413620514,-4244162.80592691,0.00042673,90]
[399480543,1766413620544,-1041.97,0.00042673,120]
[399480544,1766413620574,-1000.0,0.00042673,30]
[399480545,1766413620603,-1000.0,0.00042673,120]
[399480546,1766413620633,-1000.0,0.00042673,60]
[399480547,1766413620663,-1000.0,0.00042673,60]
[399480548,1766413620692,-1000.0,0.00042673,30]
[399480549,1766413620722,-1283.36476305,0.00042673,60]
[399480550,1766413620751,-1000.0,0.00042673,30]
[399480551,1766413620781,-618.13181587,0.00042673,120]
[399480552,1766413620812,-1000.0,0.00042673,30]
[399480553,1766413620841,-1001.15,0.00042673,120]
[399480554,1766413620870,-1001.15,0.00042673,120]
[399480555,1766413620900,-1001.15,0.00042673,120]
[399480556,1766413620928,-1001.15,0.00042673,120]
[399480557,1766413620961,-1001.15,0.00042673,120]
[399480558,1766413620989,-1001.15,0.00042673,120]
[399480559,1766413621019,-1001.15,0.00042673,120]
[399480560,1766413621048,-1001.15,0.00042673,120]
[399480561,1766413621078,-1001.15,0.00042673,120]
[399480562,1766413621108,-1001.15,0.00042673,120]
[399480563,1766413621136,-1001.15,0.00042673,120]
[399480564,1766413621166,-1001.15,0.00042673,120]
[399480565,1766413621195,-651.11445332,0.00042673,120]
[399480566,1766413621224,-1001.15,0.00042673,120]
[399480567,1766413621255,-1001.15,0.00042673,120]
[399480568,1766413621284,-1001.15,0.00042673,120]
[399480569,1766413621313,-1001.15,0.00042673,120]
[399480570,1766413621342,-1001.15,0.00042673,120]
[399480571,1766413621373,-1001.15,0.00042673,120]
[399480572,1766413621405,-1001.15,0.00042673,120]
[399480573,1766413621435,-1001.15,0.00042673,120]
[399480574,1766413621464,-1001.15,0.00042673,120]
[399480575,1766413621493,-1001.15,0.00042673,120]
[399480576,1766413621521,-1001.15,0.00042673,120]
[399480577,1766413621550,-1001.33420158,0.00042673,120]
[399480578,1766413621578,-1372.49980965,0.00042673,120]
[399480579,1766413621607,-984.77236024,0.00042673,120]
[399480580,1766413621634,-1000.0,0.00042673,60]
[399480581,1766413621663,-1321.66722409,0.00042673,120]
[399480582,1766413621692,-1000.0,0.00042673,60]
[399480583,1766413621723,-868.91097731,0.00042673,120]
[399480584,1766413621750,-706.04400569,0.00042673,120]
[399480585,1766413621778,-1950.27013175,0.00042673,120]
[399480586,1766413621808,-886.05751498,0.00042673,120]
[399480587,1766413621837,-1175.79566439,0.00042673,120]
[399480588,1766413621867,-603.82082839,0.00042673,120]
[399480589,1766413621896,-1997.55605021,0.00042673,60]
[399480590,1766413622133,-1107.337279,0.00042673,120]
[399480591,1766413622237,-840.80084283,0.00042673,120]
[399480592,1766413622267,-1144.42346726,0.00042673,120]
[399480593,1766413622295,-2121.33143299,0.00042673,120]
[399480594,1766413622325,-2184.61748662,0.00042673,120]
[399480595,1766413622353,-1532.71797053,0.00042673,120]
[399480596,1766413622382,-1635.25381286,0.00042673,120]
[399480597,1766413622412,-766.54994586,0.00042673,120]
[399480598,1766413622440,-1549.56936437,0.00042673,120]
[399480599,1766413622469,-674.2291545,0.00042673,120]
[399480600,1766413622497,-1897.63013834,0.00042673,120]
[399480601,1766413622526,-665.22520565,0.00042673,120]
[399480602,1766413622555,-1861.32993453,0.00042673,120]
[399480603,1766413622585,-1182.54349403,0.00042673,120]
[399480604,1766413622614,-1340.27966427,0.00042673,120]
[399480605,1766413622643,-1402.8862037,0.00042673,120]
[399480606,1766413622671,-1249.32877192,0.00042673,120]
[399480607,1766413622699,-2006.591205,0.00042673,120]
[399480608,1766413622728,-1750.34909681,0.00042673,120]
[399480609,1766413622757,-939.58216605,0.00042673,60]
[399480610,1766413622786,-866.62356001,0.00042673,120]
[399480611,1766413622815,-1379.47199836,0.00042673,120]
[399480612,1766413622842,-2185.6157499,0.00042673,120]
[399480613,1766413622871,-790.57741438,0.00042673,120]
[399480614,1766413622898,-1401.46506681,0.00042673,120]
[399480615,1766413622926,-1502.96053872,0.00042673,120]
[399480616,1766413622956,-2014.03541297,0.00042673,120]
[399480617,1766413622986,-1393.89604266,0.00042673,120]
[399480618,1766413623017,-1184.2742702,0.00042673,120]
[399480619,1766413623051,-756.0,0.00042673,120]
[399480620,1766413623081,-1054.70336828,0.00042673,120]
[399480621,1766413623110,-1722.4464872,0.00042673,120]
[399480622,1766413623138,-1671.17516687,0.00042673,120]
[399480623,1766413623168,-2042.98164704,0.00042673,120]
[399480624,1766413623197,-1033.62682019,0.00042673,120]
[399480625,1766413623227,-716.57410069,0.00042673,120]
[399480626,1766413623256,-1198.23399093,0.00042673,120]
[399480627,1766413623285,-673.20764142,0.00042673,120]
[399480628,1766413623313,-658.0,0.00042673,120]
[399480629,1766413623341,-27133.53,0.00042673,120]
[399480630,1766413623369,-500.0,0.00042673,120]
[399480631,1766413623398,-500.0,0.00042673,120]
[399480632,1766413623427,-2408.53,0.00042673,120]
[399480633,1766413623455,-2500.0,0.00042673,120]
[399480634,1766413623483,-3000.0,0.00042673,30]
[399480635,1766413623511,-3000.0,0.00042673,30]
[399480636,1766413623541,-1500.0,0.00042673,30]
[399480637,1766413623569,-3000.0,0.00042673,120]
[399480638,1766413623598,-3000.0,0.00042673,120]
[399480639,1766413623626,-1500.0,0.00042673,120]
[399480640,1766413623656,-3000.0,0.00042673,30]
[399480641,1766413623684,-3000.0,0.00042673,30]
[399480642,1766413623712,-1207.0,0.00042673,30]
[399480643,1766413623741,-3000.0,0.00042673,120]
[399480644,1766413623769,-3000.0,0.00042673,120]
[399480645,1766413623798,-1207.0,0.00042673,120]
[399480646,1766413623827,-36861.46886507,0.00042673,30]
[399480647,1766413623853,-109348.69519836,0.00042673,60]
[399480648,1766413623883,-15424.32250209,0.00042673,30]
[399480649,1766413623914,-1431158.4417933,0.00042673,30]
[399480650,1766413628441,-2042067.10743567,0.00042673,30]
[399480651,1766413628472,-30260.09693166,0.00042673,30]
[399480652,1766413628503,-1131966.0357227,0.00042673,30]
[399480653,1766413628533,-2484.33504756,0.00042673,30]
[399480654,1766413628561,-57304.52400646,0.00042673,30]
[399480655,1766413628591,-229071.38256769,0.00042673,30]
[399480656,1766413628620,-1754649.11355356,0.00042673,30]
[399480657,1766413628650,-538017.38010403,0.00042673,30]
[399480658,1766413628679,-214180.02463067,0.00042673,30]
[399480659,1766413632506,-1594628.38189654,0.00042673,30]
[399480660,1766413632535,-55460.69448514,0.00042673,30]
[399480661,1766413632564,-251054.11229409,0.00042673,30]
[399480662,1766413632595,-50000.0,0.00042673,30]
[399480663,1766413632627,-50000.0,0.00042673,31]
[399480664,1766413632659,-50000.0,0.00042673,32]
[399480665,1766413632690,-50000.0,0.00042673,33]
[399480666,1766413632722,-50000.0,0.00042673,34]
[399480667,1766413632752,-50000.0,0.00042673,35]
[399480668,1766413632782,-50000.0,0.00042673,36]
[399480669,1766413632813,-50000.0,0.00042673,37]
[399480670,1766413632845,-50000.0,0.00042673,38]
[399480671,1766413632875,-50000.0,0.00042673,39]
[399480672,1766413632906,-50064.87532298,0.00042673,30]
[399480673,1766413632935,-2000.0,0.00042673,31]
[399480674,1766413632975,-1000.0,0.00042673,120]
[399480675,1766413633006,-518.208743,0.00042673,30]
[399480676,1766413633045,-150.12,0.00042673,120]
[399480677,1766413633075,-1083.4812351,0.00042673,120]
[399480678,1766413633105,-600.64,0.00042673,120]
[399480679,1766413633137,-153.25278074,0.00042673,120]
[399480680,1766413633166,-947.83288458,0.00042673,120]
[399480681,1766413633195,-2000.0,0.00042673,120]
[399480682,1766413633227,-1205.63549534,0.00042673,120]
[399480683,1766413633258,-3708.16528007,0.00042673,120]
[399480684,1766413633288,-741.6,0.00042673,120]
[399480685,1766413633319,-500.0,0.00042673,120]
[399480686,1766413633350,-564.62,0.00042673,120]
[399480687,1766413633378,-1855.0,0.00042673,120]
[399480688,1766413633409,-1000.0,0.00042673,60]
[399480689,1766413633439,-2000.0,0.00042673,30]
[399480690,1766413633469,-165.49899751,0.00042673,30]
[399480691,1766413633502,-203.75194882,0.00042673,120]
[399480692,1766413633532,-1384.5,0.00042673,120]
[399480693,1766413633563,-500.0,0.00042673,120]
[399480694,1766413633595,-541.79814824,0.00042673,120]
[399480695,1766413633625,-203.49077132,0.00042673,60]
[399480696,1766413633654,-844.10197886,0.00042673,120]
[399480697,1766413633683,-1202.0,0.00042673,120]
[399480698,1766413633712,-186.46483,0.00042673,60]
[399480699,1766413633740,-260.0,0.00042673,120]
[399480700,1766413633773,-1832.0161893,0.00042673,120]
[399480701,1766413633801,-14266.0,0.00042673,30]
[399480702,1766413633829,-875.77867244,0.00042673,120]
[399480703,1766413633857,-219.92433364,0.00042673,120]
[399480704,1766413633887,-828.31632221,0.00042673,30]
[399480705,1766413633916,-164.32234308,0.00042673,30]
[399480706,1766413633946,-324.54152676,0.00042673,120]
[399480707,1766413633977,-1451.55292909,0.00042673,120]
[399480708,1766413634008,-7535.33676489,0.00042673,60]
[399480709,1766413634038,-699.79283821,0.00042673,120]
[399480710,1766413634068,-285.35116052,0.00042673,120]
[399480711,1766413634096,-173.56438991,0.00042673,120]
[399480712,1766413634124,-8718.10254834,0.00042673,30]
[399480713,1766413634153,-885.2807919,0.00042673,120]
[399480714,1766413634183,-400.0,0.00042673,30]
[399480715,1766413634212,-400.0,0.00042673,30]
[399480716,1766413634242,-400.0,0.00042673,30]
[399480717,1766413634277,-400.0,0.00042673,30]
[399480718,1766413634308,-400.0,0.00042673,30]
[399480719,1766413634337,-400.0,0.00042673,30]
[399480720,1766413634366,-400.0,0.00042673,30]
[399480721,1766413634395,-400.0,0.00042673,30]
[399480722,1766413634424,-400.0,0.00042673,30]
[399480723,1766413634451,-400.0,0.00042673,30]
[399480724,1766413634480,-400.0,0.00042673,30]
[399480725,1766413634510,-400.0,0.00042673,30]
[399480726,1766413634540,-400.0,0.00042673,30]
[399480727,1766413634887,-400.0,0.00042673,30]
[399480728,1766413634918,-400.0,0.00042673,30]
[399480729,1766413634950,-400.0,0.00042673,30]
[399480730,1766413634980,-374.1783105,0.00042673,30]
[399480731,1766413635010,-508.64581139,0.00042673,120]
[399480732,1766413635042,-698.43365559,0.00042673,30]
[399480733,1766413635072,-500.0,0.00042673,30]
[399480734,1766413635102,-1191.061654,0.00042673,120]
[399480735,1766413635130,-500.0,0.00042673,120]
[399480736,1766413635160,-242.06,0.00042673,120]
[399480737,1766413635188,-1363.21,0.00042673,120]
[399480738,1766413635218,-2750.7886241,0.00042673,30]
[399480739,1766413635245,-7124.79977847,0.00042673,45]
[399480740,1766413635279,-50000.0,0.00042673,60]
[399480741,1766413635308,-1360.43613704,0.00042673,31]
[399480742,1766413635337,-500.0,0.00042673,120]
[399480743,1766413635367,-171.46,0.00042673,120]
[399480744,1766413635395,-437.0,0.00042673,30]
[399480745,1766413635425,-500.0,0.00042673,120]
[399480746,1766413635453,-1142.95,0.00042673,120]
[399480747,1766413635482,-6637.27360886,0.00042673,90]
[399480748,1766413635512,-261.129428,0.00042673,75]
[399480749,1766413635541,-676.01643625,0.00042673,30]
[399480750,1766413635570,-623.29310369,0.00042673,30]
[399480751,1766413635600,-1000.0,0.00042673,120]
[399480752,1766413635628,-1000.0,0.00042673,120]
[399480753,1766413635657,-1000.0,0.00042673,120]
[399480754,1766413635687,-513.03342,0.00042673,120]
[399480755,1766413635719,-5077.92147476,0.00042673,30]
[399480756,1766413635754,-1701.22813032,0.00042673,120]
[399480757,1766413635785,-11762.92,0.00042673,30]
[399480758,1766413635816,-3801.10752449,0.00042673,30]
[399480759,1766413635847,-17632.0,0.00042673,30]
[399480760,1766413635879,-79033.43,0.00042673,90]
[399480761,1766413635911,-567.78,0.00042673,120]
[399480762,1766413635944,-1991.0,0.00042673,59]
[399480763,1766413635978,-710.10786598,0.00042673,120]
[399480764,1766413636011,-100000.0,0.00042673,120]
[399480765,1766413636045,-100000.0,0.00042673,120]
[399480766,1766413636076,-100000.0,0.00042673,120]
[399480767,1766413636108,-100000.0,0.00042673,120]
[399480768,1766413636139,-100000.0,0.00042673,120]
[399480769,1766413636171,-100000.0,0.00042673,120]
[399480770,1766413636200,-112429.07818104,0.00042673,120]
[399480771,1766413636237,-3009.19311847,0.00042673,66]
[399480772,1766413636268,-10000.36953,0.00042673,120]
[399480773,1766413636301,-250.03531882,0.00042673,120]
[399480774,1766413636336,-386.84652804,0.00042673,120]
[399480775,1766413636370,-2165.40948801,0.00042673,120]
[399480776,1766413636403,-196.67276308,0.00042673,120]
[399480777,1766413636434,-160.0,0.00042673,30]
[399480778,1766413636464,-160.0,0.00042673,30]
[399480779,1766413636495,-160.0,0.00042673,30]
[399480780,1766413636524,-2192.441701,0.00042673,60]
[399480781,1766413636554,-409.95938281,0.00042673,120]
[399480782,1766413636583,-2531.66,0.00042673,120]
[399480783,1766413636612,-163625.41468505,0.00042673,91]
[399480784,1766413636644,-2717.52407945,0.00042673,30]
[399480785,1766413636673,-465000.0,0.00042673,60]
[399480786,1766413636706,-526.027579,0.00042673,30]
[399480787,1766413636736,-1000.0,0.00042673,120]
[399480788,1766413636766,-2526.2770469,0.00042673,120]
[399480789,1766413636795,-828.63514929,0.00042673,120]
[399480790,1766413636825,-1580.40013724,0.00042673,120]
[399480791,1766413636856,-5000.0,0.00042673,37]
[399480792,1766413636886,-161.657187,0.00042673,50]
[399480793,1766413636916,-151.0,0.00042673,30]
[399480794,1766413636952,-151.0,0.00042673,50]
[399480795,1766413636984,-151.0,0.00042673,30]
[399480796,1766413637017,-151.0,0.00042673,50]
[399480797,1766413637048,-151.0,0.00042673,30]
[399480798,1766413637078,-151.0,0.00042673,50]
[399480799,1766413637109,-163.450103,0.00042673,50]
[399480800,1766413637139,-151.0,0.00042673,50]
[399480801,1766413637169,-151.0,0.00042673,50]
[399480802,1766413637201,-151.0,0.00042673,50]
[399480803,1766413637232,-151.0,0.00042673,50]
[399480804,1766413637264,-151.0,0.00042673,50]
[399480805,1766413637295,-151.0,0.00042673,50]
[399480806,1766413637327,-151.0,0.00042673,50]
[399480807,1766413637358,-151.0,0.00042673,50]
[399480808,1766413637390,-151.0,0.00042673,50]
[399480809,1766413637420,-158.72401,0.00042673,50]
[399480810,1766413637451,-154.064954,0.00042673,50]
[399480811,1766413637485,-153.149163,0.00042673,50]
[399480812,1766413637515,-151.0,0.00042673,50]
[399480813,1766413637545,-151.0,0.00042673,50]
[399480814,1766413637575,-151.0,0.00042673,50]
[399480815,1766413637604,-151.0,0.00042673,50]
[399480816,1766413637634,-151.0,0.00042673,50]
[399480817,1766413637664,-153.82996,0.00042673,50]
[399480818,1766413637693,-153.191967,0.00042673,50]
[399480819,1766413637723,-151.0,0.00042673,50]
[399480820,1766413637751,-151.0,0.00042673,50]
[399480821,1766413638032,-169.964532,0.00042673,50]
[399480822,1766413638063,-162.672682,0.00042673,50]
[399480823,1766413638092,-151.0,0.00042673,50]
[399480824,1766413638122,-151.0,0.00042673,50]
[399480825,1766413638152,-195.824303,0.00042673,50]
[399480826,1766413638182,-155.068312,0.00042673,50]
[399480827,1766413638211,-183.299824,0.00042673,50]
[399480828,1766413638241,-152.325413,0.00042673,50]
[399480829,1766413638270,-159.19009,0.00042673,50]
[399480830,1766413638298,-151.0,0.00042673,50]
[399480831,1766413638327,-151.0,0.00042673,50]
[399480832,1766413638355,-151.0,0.00042673,50]
[399480833,1766413638383,-162.907049,0.00042673,50]
[399480834,1766413638411,-179.442369,0.00042673,50]
[399480835,1766413638440,-151.0,0.00042673,50]
[399480836,1766413638470,-160.753864,0.00042673,50]
[399480837,1766413638498,-160.618016,0.00042673,50]
[399480838,1766413638528,-159.013321,0.00042673,50]
[399480839,1766413638557,-151.0,0.00042673,50]
[399480840,1766413638588,-151.0,0.00042673,50]
[399480841,1766413638618,-226.007308,0.00042673,50]
[399480842,1766413638647,-167.630292,0.00042673,50]
[399480843,1766413638677,-151.0,0.00042673,50]
[399480844,1766413638707,-151.0,0.00042673,50]
[399480845,1766413638736,-175.321513,0.00042673,30]
[399480846,1766413638765,-151.0,0.00042673,50]
[399480847,1766413638800,-151.0,0.00042673,50]
[399480848,1766413638834,-164.494857,0.00042673,50]
[399480849,1766413638864,-151.0,0.00042673,50]
[399480850,1766413638895,-151.0,0.00042673,50]
[399480851,1766413638926,-151.0,0.00042673,50]
[399480852,1766413638958,-153.491034,0.00042673,50]
[399480853,1766413638990,-1098.0,0.00042673,30]
[399480854,1766413639022,-1098.0,0.00042673,30]
[399480855,1766413639052,-1098.0,0.00042673,30]
[399480856,1766413639081,-1098.0,0.00042673,30]
[399480857,1766413639112,-1098.0,0.00042673,30]
[399480858,1766413639143,-229.13640796,0.00042673,120]
[399480859,1766413639173,-2000.0,0.00042673,120]
[399480860,1766413639205,-500.0,0.00042673,120]
[399480861,1766413639236,-150.85813451,0.00042673,30]
[399480862,1766413639271,-501.29502757,0.00042673,30]
[399480863,1766413639302,-250.0,0.00042673,120]
[399480864,1766413639334,-500.0,0.00042673,120]
[399480865,1766413639365,-500.0,0.00042673,120]
[399480866,1766413639397,-600.0,0.00042673,120]
[399480867,1766413639427,-500.0,0.00042673,120]
[399480868,1766413639459,-6888.0,0.00042673,120]
[399480869,1766413639492,-520.0,0.00042673,120]
[399480870,1766413639521,-300.0,0.00042673,120]
[399480871,1766413639551,-151.0,0.00042673,120]
[399480872,1766413639582,-200.0,0.00042673,120]
[399480873,1766413639610,-250.0,0.00042673,120]
[399480874,1766413639640,-500.0,0.00042673,120]
[399480875,1766413639671,-500.0,0.00042673,120]
[399480876,1766413639699,-600.0,0.00042673,120]
[399480877,1766413639728,-500.0,0.00042673,120]
[399480878,1766413639761,-539.24,0.00042673,120]
[399480879,1766413639790,-311.1,0.00042673,120]
[399480880,1766413639819,-151.0,0.00042673,120]
[399480881,1766413639849,-207.4,0.00042673,120]
[399480882,1766413639878,-250.0,0.00042673,120]
[399480883,1766413639909,-500.0,0.00042673,120]
[399480884,1766413639962,-600.0,0.00042673,120]
[399480885,1766413640020,-500.0,0.00042673,120]
[399480886,1766413640075,-500.0,0.00042673,120]
[399480887,1766413640125,-559.19188,0.00042673,120]
[399480888,1766413640175,-322.6107,0.00042673,120]
[399480889,1766413640226,-151.0,0.00042673,120]
[399480890,1766413640282,-500.0,0.00042673,120]
[399480891,1766413640332,-215.0738,0.00042673,120]
[399480892,1766413640384,-500.0,0.00042673,120]
[399480893,1766413640430,-600.0,0.00042673,120]
[399480894,1766413640471,-250.0,0.00042673,120]
[399480895,1766413640528,-500.0,0.00042673,120]
[399480896,1766413640597,-579.88197956,0.00042673,120]
[399480897,1766413640645,-334.5472959,0.00042673,120]
[399480898,1766413640694,-151.0,0.00042673,120]
[399480899,1766413640741,-250.0,0.00042673,120]
[399480900,1766413640786,-223.0315306,0.00042673,120]
[399480901,1766413640832,-500.0,0.00042673,120]
[399480902,1766413640878,-500.0,0.00042673,120]
[399480903,1766413640925,-250.0,0.00042673,120]
[399480904,1766413640970,-600.0,0.00042673,120]
[399480905,1766413641015,-500.0,0.00042673,120]
[399480906,1766413641059,-601.3376128,0.00042673,120]
[399480907,1766413641105,-346.92554585,0.00042673,120]
[399480908,1766413641147,-151.0,0.00042673,120]
[399480909,1766413641191,-250.0,0.00042673,120]
[399480910,1766413641235,-500.0,0.00042673,120]
[399480911,1766413641279,-231.28369723,0.00042673,120]
[399480912,1766413641323,-500.0,0.00042673,120]
[399480913,1766413641370,-250.0,0.00042673,120]
[399480914,1766413641414,-500.0,0.00042673,120]
[399480915,1766413641456,-600.0,0.00042673,120]
[399480916,1766413641496,-623.58710448,0.00042673,120]
[399480917,1766413641538,-359.76179104,0.00042673,120]
[399480918,1766413641580,-151.0,0.00042673,120]
[399480919,1766413641622,-250.0,0.00042673,120]
[399480920,1766413641663,-500.0,0.00042673,120]
[399480921,1766413641705,-500.0,0.00042673,120]
[399480922,1766413641747,-600.0,0.00042673,120]
[399480923,1766413641786,-250.0,0.00042673,120]
[399480924,1766413641826,-239.84119403,0.00042673,120]
[399480925,1766413641866,-646.65982734,0.00042673,120]
[399480926,1766413641909,-500.0,0.00042673,120]
[399480927,1766413641953,-373.07297731,0.00042673,120]
[399480928,1766413641996,-151.0,0.00042673,120]
[399480929,1766413642039,-250.0,0.00042673,120]
[399480930,1766413642081,-500.0,0.00042673,120]
[399480931,1766413642123,-500.0,0.00042673,120]
[399480932,1766413642165,-600.0,0.00042673,120]
[399480933,1766413642207,-248.71531821,0.00042673,120]
[399480934,1766413642249,-670.58624095,0.00042673,120]
[399480935,1766413642291,-386.87667747,0.00042673,120]
[399480936,1766413642334,-250.0,0.00042673,120]
[399480937,1766413642377,-500.0,0.00042673,120]
[399480938,1766413642421,-500.0,0.00042673,120]
[399480939,1766413642462,-250.0,0.00042673,120]
[399480940,1766413642505,-600.0,0.00042673,120]
[399480941,1766413642546,-257.91778498,0.00042673,120]
[399480942,1766413642588,-695.39793187,0.00042673,120]
[399480943,1766413642635,-151.0,0.00042673,120]
[399480944,1766413642670,-401.19111454,0.00042673,120]
[399480945,1766413642701,-500.0,0.00042673,120]
[399480946,1766413642732,-250.0,0.00042673,120]
[399480947,1766413642765,-500.0,0.00042673,120]
[399480948,1766413643303,-500.0,0.00042673,120]
[399480949,1766413643336,-250.0,0.00042673,120]
[399480950,1766413643368,-600.0,0.00042673,120]
[399480951,1766413643401,-267.46074303,0.00042673,120]
[399480952,1766413643433,-721.12765535,0.00042673,120]
[399480953,1766413643464,-151.0,0.00042673,120]
[399480954,1766413644168,500.0,0.00042673,120]
[399480955,1766413644217,250.0,0.00042673,120]
[399480956,1766413644254,500.0,0.00042673,120]
[399480957,1766413644289,500.0,0.00042673,120]
[399480958,1766413644329,250.0,0.00042673,120]
[399480959,1766413644365,600.0,0.00042673,120]
[399480960,1766413644403,747.8093786,0.00042673,120]
[399480961,1766413644437,277.35679052,0.00042673,120]
[399480962,1766413644476,416.03518578,0.00042673,120]
[399480963,1766413644516,151.0,0.00042673,120]
[399480964,1766413644559,500.0,0.00042673,120]
[399480965,1766413644599,500.0,0.00042673,120]
[399480966,1766413644635,500.0,0.00042673,120]